[Event "*** Titled Tuesday Blitz"]
[Site "Chess.com"]
[Date "2020.11.03"]
[Round "5"]
[White "Loy_Konstantin"]
[Black "GameOverBro"]
[Result "0-1"]
[WhiteElo "2369"]
[BlackElo "2532"]
[TimeControl "180+1"]
[EndTime "11:00:32 PST"]
[Termination "GameOverBro won by checkmate"]

1. e4 {[%clk 0:02:59.8]} 1... d6 {[%clk 0:03:00.1]} 2. d4 {[%clk 0:02:59]} 2...
Nf6 {[%clk 0:03:00.6]} 3. Nc3 {[%clk 0:02:58.7]} 3... e5 {[%clk 0:03:00.8]} 4.
Nf3 {[%clk 0:02:58]} 4... Nbd7 {[%clk 0:03:00.9]} 5. Bc4 {[%clk 0:02:57.9]} 5...
Be7 {[%clk 0:03:00.8]} 6. O-O {[%clk 0:02:58.4]} 6... c6 {[%clk 0:03:00]} 7. a4
{[%clk 0:02:59]} 7... h6 {[%clk 0:03:00.3]} 8. Re1 {[%clk 0:02:59]} 8... Qc7
{[%clk 0:03:00.5]} 9. Ba2 {[%clk 0:02:59.3]} 9... Nf8 {[%clk 0:02:59]} 10. dxe5
{[%clk 0:02:54.5]} 10... dxe5 {[%clk 0:02:58.6]} 11. Nd2 {[%clk 0:02:36.6]}
11... Ng6 {[%clk 0:02:56.1]} 12. Nf1 {[%clk 0:02:35.9]} 12... O-O {[%clk
0:02:48.5]} 13. Ne3 {[%clk 0:02:34.8]} 13... a5 {[%clk 0:02:39.9]} 14. Nf5
{[%clk 0:02:32.4]} 14... Bc5 {[%clk 0:02:19.4]} 15. Be3 {[%clk 0:02:29.1]} 15...
Bxe3 {[%clk 0:02:15.9]} 16. Rxe3 {[%clk 0:02:26.5]} 16... Bxf5 {[%clk
0:02:11.7]} 17. exf5 {[%clk 0:02:25.9]} 17... Nf4 {[%clk 0:02:03.6]} 18. g3
{[%clk 0:02:13.1]} 18... N4d5 {[%clk 0:01:54.3]} 19. Nxd5 {[%clk 0:02:03.2]}
19... cxd5 {[%clk 0:01:50.7]} 20. Bxd5 {[%clk 0:01:55.6]} 20... Rad8 {[%clk
0:01:23.4]} 21. c4 {[%clk 0:01:55.2]} 21... e4 {[%clk 0:01:17.6]} 22. Qd4 {[%clk
0:01:46.2]} 22... Rfe8 {[%clk 0:01:16.6]} 23. Rd1 {[%clk 0:01:42.3]} 23... Qd7
{[%clk 0:01:11.8]} 24. Qb6 {[%clk 0:01:22.2]} 24... Qxa4 {[%clk 0:01:04.6]} 25.
Rde1 {[%clk 0:01:12.3]} 25... Nxd5 {[%clk 0:00:57.1]} 26. cxd5 {[%clk
0:01:13.2]} 26... Rxd5 {[%clk 0:00:56.8]} 27. Qxb7 {[%clk 0:01:11.7]} 27... Rxf5
{[%clk 0:00:41.7]} 28. Rxe4 {[%clk 0:01:09.8]} 28... Rxe4 {[%clk 0:00:39.6]} 29.
Qxe4 {[%clk 0:01:10.7]} 29... Qxe4 {[%clk 0:00:36.1]} 30. Rxe4 {[%clk
0:01:11.6]} 30... Rb5 {[%clk 0:00:36.5]} 31. Re2 {[%clk 0:01:09.6]} 31... h5
{[%clk 0:00:34.9]} 32. h4 {[%clk 0:01:09.7]} 32... g6 {[%clk 0:00:35.3]} 33. Kg2
{[%clk 0:01:10]} 33... Kg7 {[%clk 0:00:36]} 34. Kf3 {[%clk 0:01:10.6]} 34...
Rb3+ {[%clk 0:00:35.1]} 35. Ke4 {[%clk 0:01:09.7]} 35... Kf6 {[%clk 0:00:35.6]}
36. Kd4 {[%clk 0:01:04.4]} 36... Kf5 {[%clk 0:00:30.5]} 37. Kc4 {[%clk
0:01:04.1]} 37... Rb4+ {[%clk 0:00:29.5]} 38. Kc3 {[%clk 0:01:00.6]} 38... Kg4
{[%clk 0:00:28]} 39. Re7 {[%clk 0:00:56.1]} 39... f6 {[%clk 0:00:28]} 40. Re6
{[%clk 0:00:53.8]} 40... Kf5 {[%clk 0:00:27.1]} 41. Ra6 {[%clk 0:00:50.2]} 41...
Ra4 {[%clk 0:00:27.5]} 42. b3 {[%clk 0:00:37.6]} 42... Ra2 {[%clk 0:00:26.6]}
43. f3 {[%clk 0:00:34]} 43... g5 {[%clk 0:00:26.9]} 44. hxg5 {[%clk 0:00:33.4]}
44... fxg5 {[%clk 0:00:27.8]} 45. Rh6 {[%clk 0:00:33.4]} 45... Rg2 {[%clk
0:00:23.4]} 46. Rxh5 {[%clk 0:00:20.1]} 46... Rxg3 {[%clk 0:00:23.5]} 47. Kc4
{[%clk 0:00:20.4]} 47... Rxf3 {[%clk 0:00:23.4]} 48. Rh8 {[%clk 0:00:21.3]}
48... g4 {[%clk 0:00:21.6]} 49. Ra8 {[%clk 0:00:21.4]} 49... g3 {[%clk
0:00:17.7]} 50. Rxa5+ {[%clk 0:00:21.2]} 50... Kg4 {[%clk 0:00:16]} 51. Ra8
{[%clk 0:00:19.6]} 51... Rf4+ {[%clk 0:00:15.7]} 52. Kc5 {[%clk 0:00:17.8]}
52... Kf3 {[%clk 0:00:16.2]} 53. Ra1 {[%clk 0:00:14.8]} 53... Kf2 {[%clk
0:00:12.3]} 54. b4 {[%clk 0:00:14.6]} 54... g2 {[%clk 0:00:12.6]} 55. b5 {[%clk
0:00:14.1]} 55... Re4 {[%clk 0:00:13]} 56. b6 {[%clk 0:00:08.8]} 56... Re1
{[%clk 0:00:13.2]} 57. Rxe1 {[%clk 0:00:08.5]} 57... Kxe1 {[%clk 0:00:13.4]} 58.
b7 {[%clk 0:00:09.4]} 58... g1=Q+ {[%clk 0:00:14.3]} 59. Kc6 {[%clk 0:00:08.5]}
59... Qg6+ {[%clk 0:00:13.9]} 60. Kd7 {[%clk 0:00:08.3]} 60... Qf7+ {[%clk
0:00:14]} 61. Kc8 {[%clk 0:00:07]} 61... Qc4+ {[%clk 0:00:13.7]} 62. Kd7 {[%clk
0:00:06.6]} 62... Qd5+ {[%clk 0:00:14]} 63. Kc7 {[%clk 0:00:07.5]} 63... Qc5+
{[%clk 0:00:14.2]} 64. Kd7 {[%clk 0:00:07.9]} 64... Qb6 {[%clk 0:00:14.4]} 65.
Kc8 {[%clk 0:00:08]} 65... Qc6+ {[%clk 0:00:14.8]} 66. Kb8 {[%clk 0:00:08.1]}
66... Kd2 {[%clk 0:00:15.3]} 67. Ka7 {[%clk 0:00:07.7]} 67... Qc7 {[%clk
0:00:14.6]} 68. Ka8 {[%clk 0:00:07.1]} 68... Qa5+ {[%clk 0:00:14.6]} 69. Kb8
{[%clk 0:00:08]} 69... Kd3 {[%clk 0:00:15.2]} 70. Kc8 {[%clk 0:00:07.7]} 70...
Qc5+ {[%clk 0:00:15.4]} 71. Kd7 {[%clk 0:00:07.7]} 71... Qb5+ {[%clk 0:00:15.7]}
72. Kc7 {[%clk 0:00:07.6]} 72... Qc5+ {[%clk 0:00:15.4]} 73. Kd7 {[%clk
0:00:07.6]} 73... Qb6 {[%clk 0:00:15.8]} 74. Kc8 {[%clk 0:00:07.6]} 74... Qc6+
{[%clk 0:00:16.2]} 75. Kb8 {[%clk 0:00:07.8]} 75... Kc4 {[%clk 0:00:16.7]} 76.
Ka7 {[%clk 0:00:07.7]} 76... Qa4+ {[%clk 0:00:16.7]} 77. Kb6 {[%clk 0:00:07.3]}
77... Qb4+ {[%clk 0:00:16.6]} 78. Kc7 {[%clk 0:00:06.2]} 78... Qc5+ {[%clk
0:00:16.7]} 79. Kd7 {[%clk 0:00:06.5]} 79... Qb6 {[%clk 0:00:16.8]} 80. Kc8
{[%clk 0:00:07.4]} 80... Qc6+ {[%clk 0:00:17.1]} 81. Kb8 {[%clk 0:00:07.6]}
81... Kb5 {[%clk 0:00:17.6]} 82. Ka7 {[%clk 0:00:08.5]} 82... Qc7 {[%clk
0:00:16.9]} 83. Ka8 {[%clk 0:00:08.2]} 83... Ka6 {[%clk 0:00:16.2]} 84. b8=Q
{[%clk 0:00:04]} 84... Qc6+ {[%clk 0:00:16.4]} 85. Qb7+ {[%clk 0:00:03.5]} 85...
Qxb7# {[%clk 0:00:17.3]} 0-1

[Event "*** Titled Tuesday Blitz"]
[Site "Chess.com"]
[Date "2020.11.03"]
[Round "5"]
[White "Flutaga"]
[Black "JoliyRoger"]
[Result "1-0"]
[WhiteElo "2004"]
[BlackElo "2361"]
[TimeControl "180+1"]
[EndTime "11:00:35 PST"]
[Termination "Flutaga won by checkmate"]

1. e4 {[%clk 0:03:00.9]} 1... c6 {[%clk 0:03:00]} 2. d4 {[%clk 0:02:59.3]} 2...
d5 {[%clk 0:03:00.9]} 3. exd5 {[%clk 0:02:56.7]} 3... cxd5 {[%clk 0:03:00.4]} 4.
c3 {[%clk 0:02:57.2]} 4... Nc6 {[%clk 0:03:00.8]} 5. Bd3 {[%clk 0:02:57.6]} 5...
g6 {[%clk 0:02:59.9]} 6. Ne2 {[%clk 0:02:57.4]} 6... Nh6 {[%clk 0:03:00.5]} 7.
O-O {[%clk 0:02:57.4]} 7... Bg7 {[%clk 0:03:01]} 8. Ng3 {[%clk 0:02:56.8]} 8...
O-O {[%clk 0:03:01.4]} 9. f4 {[%clk 0:02:55.2]} 9... Nf5 {[%clk 0:02:54.4]} 10.
Nxf5 {[%clk 0:02:46.6]} 10... Bxf5 {[%clk 0:02:54.9]} 11. Bxf5 {[%clk
0:02:46.3]} 11... gxf5 {[%clk 0:02:55.2]} 12. Qh5 {[%clk 0:02:45.8]} 12... e6
{[%clk 0:02:43.9]} 13. Nd2 {[%clk 0:02:42.7]} 13... Qf6 {[%clk 0:02:33.7]} 14.
Nf3 {[%clk 0:02:32.5]} 14... Qg6 {[%clk 0:02:33.8]} 15. Qh3 {[%clk 0:02:07.7]}
15... Bf6 {[%clk 0:02:11.5]} 16. Ne5 {[%clk 0:02:03]} 16... Bxe5 {[%clk
0:00:53.6]} 17. fxe5 {[%clk 0:01:24.4]} 17... Kh8 {[%clk 0:00:26.3]} 18. Rf3
{[%clk 0:01:10.1]} 18... f6 {[%clk 0:00:26.4]} 19. Rg3 {[%clk 0:01:07.4]} 19...
Qf7 {[%clk 0:00:24.9]} 20. exf6 {[%clk 0:00:46.8]} 20... Qxf6 {[%clk 0:00:23.3]}
21. Bg5 {[%clk 0:00:47.1]} 21... Qf7 {[%clk 0:00:23.2]} 22. Qh4 {[%clk
0:00:33.8]} 22... Rae8 {[%clk 0:00:17.6]} 23. Rf1 {[%clk 0:00:32]} 23... Ne7
{[%clk 0:00:17.4]} 24. Rh3 {[%clk 0:00:12.4]} 24... Ng6 {[%clk 0:00:13.3]} 25.
Qh5 {[%clk 0:00:12.7]} 25... Kg8 {[%clk 0:00:11.5]} 26. Bh6 {[%clk 0:00:10.6]}
26... Kh8 {[%clk 0:00:07.7]} 27. Bxf8 {[%clk 0:00:09.8]} 27... Rxf8 {[%clk
0:00:08.4]} 28. Re3 {[%clk 0:00:09.3]} 28... Rg8 {[%clk 0:00:08.6]} 29. Kh1
{[%clk 0:00:08.8]} 29... Qf6 {[%clk 0:00:08.6]} 30. Rh3 {[%clk 0:00:07.7]} 30...
Rg7 {[%clk 0:00:08.3]} 31. Re1 {[%clk 0:00:07.1]} 31... Kg8 {[%clk 0:00:08]} 32.
b3 {[%clk 0:00:05.7]} 32... b6 {[%clk 0:00:07.7]} 33. a4 {[%clk 0:00:05.6]}
33... Kh8 {[%clk 0:00:03.7]} 34. Rg3 {[%clk 0:00:04.2]} 34... Kg8 {[%clk
0:00:03.4]} 35. Rge3 {[%clk 0:00:04]} 35... Nf4 {[%clk 0:00:01.9]} 36. Qe8+
{[%clk 0:00:03.5]} 36... Qf8 {[%clk 0:00:02.5]} 37. Qxf8+ {[%clk 0:00:03.7]}
37... Kxf8 {[%clk 0:00:03.1]} 38. g3 {[%clk 0:00:04.1]} 38... Ng6 {[%clk
0:00:01.3]} 39. Rxe6 {[%clk 0:00:04.6]} 39... Rf7 {[%clk 0:00:01.9]} 40. Re8+
{[%clk 0:00:04.7]} 40... Kg7 {[%clk 0:00:02.4]} 41. R8e6 {[%clk 0:00:05.1]}
41... f4 {[%clk 0:00:03]} 42. gxf4 {[%clk 0:00:05.4]} 42... Nxf4 {[%clk
0:00:03.3]} 43. R6e3 {[%clk 0:00:05.2]} 43... Ng6 {[%clk 0:00:03]} 44. Rg3
{[%clk 0:00:05.2]} 44... h6 {[%clk 0:00:02.6]} 45. Rg2 {[%clk 0:00:05.3]} 45...
Kh7 {[%clk 0:00:02.7]} 46. Kg1 {[%clk 0:00:05.3]} 46... Nh4 {[%clk 0:00:02.8]}
47. Rf2 {[%clk 0:00:03.5]} 47... Nf3+ {[%clk 0:00:02.9]} 48. Kf1 {[%clk
0:00:02.7]} 48... Nxh2+ {[%clk 0:00:03.4]} 49. Kg2 {[%clk 0:00:02.5]} 49...
Rxf2+ {[%clk 0:00:03.9]} 50. Kxf2 {[%clk 0:00:03.4]} 50... Ng4+ {[%clk
0:00:04.6]} 51. Kf3 {[%clk 0:00:03.8]} 51... Nf6 {[%clk 0:00:05.2]} 52. Kf4
{[%clk 0:00:04]} 52... Kg6 {[%clk 0:00:05.6]} 53. Re6 {[%clk 0:00:03.7]} 53...
Kf7 {[%clk 0:00:05.2]} 54. Rc6 {[%clk 0:00:03.9]} 54... Ne4 {[%clk 0:00:05.3]}
55. Rc7+ {[%clk 0:00:04.2]} 55... Ke6 {[%clk 0:00:05.6]} 56. c4 {[%clk
0:00:04.6]} 56... dxc4 {[%clk 0:00:05.6]} 57. Kxe4 {[%clk 0:00:04.7]} 57... Kd6
{[%clk 0:00:06.5]} 58. Rxa7 {[%clk 0:00:03.5]} 58... cxb3 {[%clk 0:00:07]} 59.
Kd3 {[%clk 0:00:03.7]} 59... h5 {[%clk 0:00:06.6]} 60. Rh7 {[%clk 0:00:03.3]}
60... b5 {[%clk 0:00:06.6]} 61. axb5 {[%clk 0:00:03.1]} 61... b2 {[%clk
0:00:06.9]} 62. Kc2 {[%clk 0:00:03.1]} 62... h4 {[%clk 0:00:07.8]} 63. Rxh4
{[%clk 0:00:02.7]} 63... Kd5 {[%clk 0:00:08.7]} 64. Kxb2 {[%clk 0:00:03]} 64...
Kc4 {[%clk 0:00:09.6]} 65. b6 {[%clk 0:00:03.2]} 65... Kb5 {[%clk 0:00:10.5]}
66. b7 {[%clk 0:00:03.7]} 66... Kc6 {[%clk 0:00:11.4]} 67. b8=Q {[%clk 0:00:04]}
67... Kd7 {[%clk 0:00:12.3]} 68. Rh7+ {[%clk 0:00:03.9]} 68... Ke6 {[%clk
0:00:13.2]} 69. Qe8+ {[%clk 0:00:03.9]} 69... Kd5 {[%clk 0:00:14.1]} 70. Rd7+
{[%clk 0:00:04.2]} 70... Kc4 {[%clk 0:00:15]} 71. d5 {[%clk 0:00:04.2]} 71...
Kd3 {[%clk 0:00:15.9]} 72. Qg6+ {[%clk 0:00:03.1]} 72... Kc4 {[%clk 0:00:16]}
73. Qg4+ {[%clk 0:00:03]} 73... Kc5 {[%clk 0:00:16.6]} 74. Rc7+ {[%clk
0:00:03.2]} 74... Kb6 {[%clk 0:00:17.1]} 75. Rc6+ {[%clk 0:00:03.5]} 75... Kb5
{[%clk 0:00:17.9]} 76. Qe2+ {[%clk 0:00:03]} 76... Ka5 {[%clk 0:00:18.8]} 77.
Qd2+ {[%clk 0:00:02.7]} 77... Ka4 {[%clk 0:00:18.4]} 78. Qc2+ {[%clk 0:00:02.8]}
78... Kb5 {[%clk 0:00:18.7]} 79. Qc5+ {[%clk 0:00:03]} 79... Ka4 {[%clk
0:00:18.6]} 80. Ra6# {[%clk 0:00:03.9]} 1-0

[Event "*** Titled Tuesday Blitz"]
[Site "Chess.com"]
[Date "2020.11.03"]
[Round "5"]
[White "TregubovP"]
[Black "Fandorine"]
[Result "1/2-1/2"]
[WhiteElo "2540"]
[BlackElo "2823"]
[TimeControl "180+1"]
[EndTime "11:00:58 PST"]
[Termination "Game drawn by repetition"]

1. e4 {[%clk 0:02:59.3]} 1... c5 {[%clk 0:02:54.4]} 2. Nf3 {[%clk 0:02:55.5]}
2... d6 {[%clk 0:02:53.3]} 3. c3 {[%clk 0:02:54.1]} 3... Nf6 {[%clk 0:02:52.2]}
4. Be2 {[%clk 0:02:51.7]} 4... g6 {[%clk 0:02:51.3]} 5. O-O {[%clk 0:02:45.7]}
5... Bg7 {[%clk 0:02:51.3]} 6. Bb5+ {[%clk 0:02:46.3]} 6... Bd7 {[%clk
0:02:46.9]} 7. Bxd7+ {[%clk 0:02:45.4]} 7... Nfxd7 {[%clk 0:02:45.2]} 8. d4
{[%clk 0:02:40.1]} 8... O-O {[%clk 0:02:40]} 9. d5 {[%clk 0:02:36.2]} 9... Na6
{[%clk 0:02:35.2]} 10. c4 {[%clk 0:02:31.1]} 10... Nc7 {[%clk 0:02:33.1]} 11.
Nc3 {[%clk 0:02:30.8]} 11... a6 {[%clk 0:02:28.5]} 12. a4 {[%clk 0:02:24.7]}
12... b5 {[%clk 0:02:28.7]} 13. axb5 {[%clk 0:02:22.5]} 13... axb5 {[%clk
0:02:29.6]} 14. Rxa8 {[%clk 0:02:20.2]} 14... Qxa8 {[%clk 0:02:30.5]} 15. cxb5
{[%clk 0:02:11.5]} 15... Qb7 {[%clk 0:02:27.9]} 16. Bg5 {[%clk 0:02:00.7]} 16...
Re8 {[%clk 0:02:27.9]} 17. Qd3 {[%clk 0:01:58]} 17... h6 {[%clk 0:02:08.1]} 18.
Bh4 {[%clk 0:01:55.3]} 18... g5 {[%clk 0:02:05.1]} 19. Bg3 {[%clk 0:01:55]}
19... Rb8 {[%clk 0:02:01]} 20. h4 {[%clk 0:01:52.3]} 20... g4 {[%clk 0:02:00.1]}
21. Nh2 {[%clk 0:01:45.5]} 21... h5 {[%clk 0:02:00.1]} 22. f3 {[%clk 0:01:45.8]}
22... Nxb5 {[%clk 0:01:48]} 23. fxg4 {[%clk 0:01:38.8]} 23... Nd4 {[%clk
0:01:30.5]} 24. Rf2 {[%clk 0:01:26.1]} 24... Qa7 {[%clk 0:01:00.2]} 25. gxh5
{[%clk 0:01:21.3]} 25... Qa1+ {[%clk 0:00:57]} 26. Qd1 {[%clk 0:01:16.3]} 26...
Qxd1+ {[%clk 0:00:46.7]} 27. Nxd1 {[%clk 0:01:16]} 27... Nf6 {[%clk 0:00:44.1]}
28. Nc3 {[%clk 0:01:08]} 28... Nxh5 {[%clk 0:00:42]} 29. Nf1 {[%clk 0:01:08.1]}
29... Nxg3 {[%clk 0:00:36.7]} 30. Nxg3 {[%clk 0:01:08.1]} 30... Be5 {[%clk
0:00:37.6]} 31. Nf1 {[%clk 0:00:41.6]} 31... Nb5 {[%clk 0:00:30.6]} 32. Rc2
{[%clk 0:00:31]} 32... Nd4 {[%clk 0:00:25.2]} 33. Rf2 {[%clk 0:00:27.5]} 33...
Kg7 {[%clk 0:00:23.6]} 34. Ne3 {[%clk 0:00:24.5]} 34... Rh8 {[%clk 0:00:23.6]}
35. Ne2 {[%clk 0:00:20.9]} 35... Nxe2+ {[%clk 0:00:21.5]} 36. Rxe2 {[%clk
0:00:21]} 36... Bd4 {[%clk 0:00:20.5]} 37. Kf1 {[%clk 0:00:16.9]} 37... Bxe3
{[%clk 0:00:20.1]} 38. Rxe3 {[%clk 0:00:17.2]} 38... Rxh4 {[%clk 0:00:20.7]} 39.
Kf2 {[%clk 0:00:15.8]} 39... Rh1 {[%clk 0:00:20.7]} 40. b4 {[%clk 0:00:15.4]}
40... cxb4 {[%clk 0:00:16.9]} 41. Rb3 {[%clk 0:00:15.5]} 41... Rh4 {[%clk
0:00:11.9]} 42. Rxb4 {[%clk 0:00:15.2]} 42... f5 {[%clk 0:00:10.6]} 43. Kf3
{[%clk 0:00:14.3]} 43... Kf6 {[%clk 0:00:10.5]} 44. g3 {[%clk 0:00:14.4]} 44...
fxe4+ {[%clk 0:00:09]} 45. Rxe4 {[%clk 0:00:13.6]} 45... Rh5 {[%clk 0:00:04.6]}
46. Re6+ {[%clk 0:00:13.2]} 46... Kf7 {[%clk 0:00:04.9]} 47. Ke4 {[%clk
0:00:13.4]} 47... Rg5 {[%clk 0:00:05.2]} 48. Rh6 {[%clk 0:00:10.4]} 48... Rxg3
{[%clk 0:00:05.6]} 49. Rh7+ {[%clk 0:00:09.6]} 49... Kf6 {[%clk 0:00:06]} 50.
Rh6+ {[%clk 0:00:09.6]} 50... Rg6 {[%clk 0:00:04.4]} 51. Rh4 {[%clk 0:00:10]}
51... Rg5 {[%clk 0:00:04.1]} 52. Rh6+ {[%clk 0:00:09.8]} 52... Kf7 {[%clk
0:00:04.7]} 53. Kd4 {[%clk 0:00:09.1]} 53... Ke8 {[%clk 0:00:05]} 54. Rh8+
{[%clk 0:00:07.9]} 54... Kd7 {[%clk 0:00:05.3]} 55. Ra8 {[%clk 0:00:08.5]} 55...
Rg4+ {[%clk 0:00:05.7]} 56. Kd3 {[%clk 0:00:07.4]} 56... Rb4 {[%clk 0:00:06.2]}
57. Ke3 {[%clk 0:00:07.2]} 57... Rb7 {[%clk 0:00:06.7]} 58. Kd4 {[%clk
0:00:07.1]} 58... Rc7 {[%clk 0:00:06.7]} 59. Ra4 {[%clk 0:00:06.2]} 59... Ke8
{[%clk 0:00:06.6]} 60. Ra8+ {[%clk 0:00:05.7]} 60... Kf7 {[%clk 0:00:07.1]} 61.
Rh8 {[%clk 0:00:06.3]} 61... Rc1 {[%clk 0:00:07.2]} 62. Rh7+ {[%clk 0:00:05.1]}
62... Kf6 {[%clk 0:00:07.8]} 63. Rh6+ {[%clk 0:00:05.7]} 63... Kg5 {[%clk
0:00:08.4]} 64. Re6 {[%clk 0:00:05.7]} 64... Rc7 {[%clk 0:00:06.8]} 65. Ke4
{[%clk 0:00:05.4]} 65... Rc4+ {[%clk 0:00:05.7]} 66. Kd3 {[%clk 0:00:05.3]}
66... Rc7 {[%clk 0:00:06.2]} 67. Ke4 {[%clk 0:00:05.8]} 67... Ra7 {[%clk
0:00:07.1]} 68. Ke3 {[%clk 0:00:04.2]} 68... Kf5 {[%clk 0:00:07.3]} 69. Kd4
{[%clk 0:00:04.7]} 69... Ra4+ {[%clk 0:00:07.4]} 70. Kd3 {[%clk 0:00:04.9]}
70... Ra7 {[%clk 0:00:06.8]} 71. Kd4 {[%clk 0:00:05.1]} 71... Rc7 {[%clk
0:00:07.7]} 72. Kd3 {[%clk 0:00:05.4]} 72... Kf4 {[%clk 0:00:08.1]} 73. Kd4
{[%clk 0:00:05.7]} 73... Kf5 {[%clk 0:00:08.4]} 74. Kd3 {[%clk 0:00:06]} 74...
Rb7 {[%clk 0:00:05.3]} 75. Kd4 {[%clk 0:00:06.4]} 75... Rb4+ {[%clk 0:00:05.4]}
76. Kd3 {[%clk 0:00:06.4]} 76... Rb8 {[%clk 0:00:05.7]} 77. Kd4 {[%clk
0:00:06.7]} 77... Rb7 {[%clk 0:00:06]} 78. Kd3 {[%clk 0:00:07]} 78... Rc7 {[%clk
0:00:06.5]} 79. Kd4 {[%clk 0:00:07.2]} 79... Kf4 {[%clk 0:00:06.9]} 80. Kd3
{[%clk 0:00:07.4]} 80... Kf3 {[%clk 0:00:07.5]} 81. Kd4 {[%clk 0:00:07.7]} 81...
Kf2 {[%clk 0:00:08]} 82. Kd3 {[%clk 0:00:08.1]} 82... Kf3 {[%clk 0:00:08.3]} 83.
Kd4 {[%clk 0:00:08.5]} 83... Ra7 {[%clk 0:00:08.1]} 84. Kd3 {[%clk 0:00:07.8]}
84... Kf4 {[%clk 0:00:08.5]} 85. Kd4 {[%clk 0:00:08.2]} 85... Kf5 {[%clk
0:00:08.7]} 86. Kd3 {[%clk 0:00:08.7]} 86... Ra5 {[%clk 0:00:08.1]} 87. Kd4
{[%clk 0:00:08.8]} 87... Ra4+ {[%clk 0:00:08.5]} 88. Kd3 {[%clk 0:00:08.9]}
88... Ra7 {[%clk 0:00:07.9]} 89. Kd4 {[%clk 0:00:09.3]} 1/2-1/2